[Event "ONJK 2023 U25"]
[Site "Dieren, Netherlands"]
[Date "2023.08.05"]
[Round "2.2"]
[White "Johannesson, Björn"]
[Black "Faybish, Benjamin"]
[Result "1-0"]
[TimeControl "90min + 30sec/zet"]
[WhiteElo "1200"]
[BlackElo "2064"]

1. Nf3 {[%clk 01:30:56]} {[%emt 00:00:03]} c5 {[%clk 01:29:30]} {[%emt
00:01:30]} 2. c4 {[%clk 01:31:20]} {[%emt 00:00:07]} Nc6 {[%clk 01:29:39]}
{[%emt 00:00:21]} 3. g3 {[%clk 01:31:17]} {[%emt 00:00:33]} g6 {[%clk
01:29:26]} {[%emt 00:00:42]} 4. Bg2 {[%clk 01:31:29]} {[%emt 00:00:19]} Bg7
{[%clk 01:29:51]} {[%emt 00:00:04]} 5. O-O {[%clk 01:31:31]} {[%emt 00:00:29]}
d6 {[%clk 01:29:22]} {[%emt 00:00:59]} 6. d3 {[%clk 01:30:13]} {[%emt
00:01:48]} e5 {[%clk 01:29:02]} {[%emt 00:00:50]} 7. e4 {[%clk 01:30:08]}
{[%emt 00:00:35]} Nge7 {[%clk 01:28:57]} {[%emt 00:00:35]} 8. Nc3 {[%clk
01:30:16]} {[%emt 00:00:22]} O-O {[%clk 01:28:36]} {[%emt 00:00:50]} 9. a3
{[%clk 01:28:35]} {[%emt 00:02:11]} a5 {[%clk 01:27:43]} {[%emt 00:01:23]} 10.
Bd2 {[%clk 01:21:02]} {[%emt 00:08:04]} Rb8 {[%clk 01:18:39]} {[%emt 00:09:34]}
11. Qc1 {[%clk 01:20:21]} {[%emt 00:01:11]} f5 {[%clk 01:17:37]} {[%emt
00:01:32]} 12. exf5 {[%clk 01:18:48]} {[%emt 00:02:03]} Bxf5 {[%clk 01:17:34]}
{[%emt 00:00:33]} 13. Ne4 {[%clk 01:14:15]} {[%emt 00:05:02]} Bg4 {[%clk
01:15:32]} {[%emt 00:02:32]} 14. Nh4 {[%clk 01:11:15]} {[%emt 00:03:30]} Nd4
{[%clk 01:12:19]} {[%emt 00:03:43]} 15. Qb1 {[%clk 01:02:06]} {[%emt 00:09:39]}
Nb3 {[%clk 01:01:47]} {[%emt 00:11:02]} 16. Ra2 {[%clk 01:02:17]} {[%emt
00:00:20]} Qd7 {[%clk 01:00:33]} {[%emt 00:01:44]} 17. Bg5 {[%clk 00:57:20]}
{[%emt 00:05:26]} Nc6 {[%clk 00:54:04]} {[%emt 00:06:59]} 18. Nd2 {[%clk
00:51:52]} {[%emt 00:05:59]} a4 {[%clk 00:48:35]} {[%emt 00:05:59]} 19. Nhf3
{[%clk 00:40:02]} {[%emt 00:12:19]} h6 {[%clk 00:43:31]} {[%emt 00:05:34]} 20.
Be3 {[%clk 00:40:13]} {[%emt 00:00:19]} Rf6 {[%clk 00:42:19]} {[%emt 00:01:42]}
21. h4 {[%clk 00:37:50]} {[%emt 00:02:53]} Rbf8 {[%clk 00:40:00]} {[%emt
00:02:50]} 22. Nh2 {[%clk 00:37:25]} {[%emt 00:00:54]} Nxd2 {[%clk 00:36:23]}
{[%emt 00:04:07]} 23. Bxd2 {[%clk 00:37:45]} {[%emt 00:00:10]} Bh3 {[%clk
00:36:21]} {[%emt 00:00:33]} 24. b4 {[%clk 00:36:13]} {[%emt 00:02:02]} axb3
{[%clk 00:35:17]} {[%emt 00:01:33]} 25. Qxb3 {[%clk 00:36:19]} {[%emt
00:00:24]} Nd4 {[%clk 00:35:09]} {[%emt 00:00:38]} 26. Qd1 {[%clk 00:34:58]}
{[%emt 00:01:51]} Bxg2 {[%clk 00:34:18]} {[%emt 00:01:21]} 27. Kxg2 {[%clk
00:35:16]} {[%emt 00:00:12]} Qc6+ {[%clk 00:34:15]} {[%emt 00:00:33]} 28. f3
{[%clk 00:34:28]} {[%emt 00:01:18]} h5 {[%clk 00:28:42]} {[%emt 00:06:02]} 29.
a4 {[%clk 00:31:40]} {[%emt 00:03:19]} Kh7 {[%clk 00:28:04]} {[%emt 00:01:08]}
30. a5 {[%clk 00:28:09]} {[%emt 00:04:01]} Bh6 {[%clk 00:26:50]} {[%emt
00:01:44]} 31. Bxh6 {[%clk 00:27:58]} {[%emt 00:00:41]} Kxh6 {[%clk 00:27:15]}
{[%emt 00:00:05]} 32. g4 {[%clk 00:28:21]} {[%emt 00:00:07]} Kh7 {[%clk
00:27:00]} {[%emt 00:00:44]} 33. g5 {[%clk 00:28:28]} {[%emt 00:00:23]} Rf4
{[%clk 00:26:35]} {[%emt 00:00:56]} 34. Kg3 {[%clk 00:28:20]} {[%emt 00:00:38]}
Nf5+ {[%clk 00:26:54]} {[%emt 00:00:10]} 35. Kg2 {[%clk 00:27:42]} {[%emt
00:01:09]} Ne3+ {[%clk 00:27:13]} {[%emt 00:00:10]} 1-0

[Event "ONJK 2023 U25"]
[Site "Dieren, Netherlands"]
[Date "2023.08.05"]
[Round "2.3"]
[White "Van Randtwijk, Mick"]
[Black "Guillaumond, Matthieu"]
[Result "1-0"]
[TimeControl "90min + 30sec/zet"]
[WhiteElo "2035"]
[BlackElo "1856"]

1. e4 {[%clk 01:30:54]} {[%emt 00:00:05]} c5 {[%clk 01:30:56]} {[%emt
00:00:04]} 2. Nf3 {[%clk 01:31:13]} {[%emt 00:00:11]} Nc6 {[%clk 01:31:20]}
{[%emt 00:00:06]} 3. d4 {[%clk 01:31:22]} {[%emt 00:00:21]} cxd4 {[%clk
01:31:45]} {[%emt 00:00:06]} 4. Nxd4 {[%clk 01:31:41]} {[%emt 00:00:10]} g6
{[%clk 01:32:05]} {[%emt 00:00:10]} 5. Nc3 {[%clk 01:31:43]} {[%emt 00:00:28]}
Bg7 {[%clk 01:32:29]} {[%emt 00:00:06]} 6. Be3 {[%clk 01:31:57]} {[%emt
00:00:16]} Nf6 {[%clk 01:32:46]} {[%emt 00:00:13]} 7. Bc4 {[%clk 01:31:29]}
{[%emt 00:00:58]} Qa5 {[%clk 01:32:38]} {[%emt 00:00:38]} 8. O-O {[%clk
01:31:13]} {[%emt 00:00:46]} O-O {[%clk 01:33:02]} {[%emt 00:00:06]} 9. Bb3
{[%clk 01:29:50]} {[%emt 00:01:53]} d6 {[%clk 01:33:20]} {[%emt 00:00:13]} 10.
h3 {[%clk 01:29:22]} {[%emt 00:00:58]} Bd7 {[%clk 01:33:33]} {[%emt 00:00:17]}
11. f4 {[%clk 01:28:22]} {[%emt 00:01:30]} Rac8 {[%clk 01:30:42]} {[%emt
00:03:20]} 12. Qd3 {[%clk 01:26:30]} {[%emt 00:02:22]} a6 {[%clk 01:28:05]}
{[%emt 00:03:06]} 13. Rae1 {[%clk 01:20:17]} {[%emt 00:06:44]} b5 {[%clk
01:25:17]} {[%emt 00:03:17]} 14. e5 {[%clk 01:07:30]} {[%emt 00:13:18]} dxe5
{[%clk 01:19:03]} {[%emt 00:06:44]} 15. Nxc6 {[%clk 01:07:51]} {[%emt
00:00:09]} Bxc6 {[%clk 01:19:18]} {[%emt 00:00:15]} 16. fxe5 {[%clk 01:08:09]}
{[%emt 00:00:12]} Rcd8 {[%clk 01:15:54]} {[%emt 00:03:53]} 17. exf6 {[%clk
01:06:50]} {[%emt 00:01:51]} Bxf6 {[%clk 00:58:25]} {[%emt 00:17:59]} 18. Qe2
{[%clk 01:06:56]} {[%emt 00:00:23]} b4 {[%clk 00:57:52]} {[%emt 00:01:04]} 19.
Nd1 {[%clk 01:05:08]} {[%emt 00:02:17]} Kg7 {[%clk 00:54:57]} {[%emt 00:03:25]}
20. Qf2 {[%clk 01:01:07]} {[%emt 00:04:32]} Qh5 {[%clk 00:53:00]} {[%emt
00:02:25]} 21. Kh2 {[%clk 00:54:00]} {[%emt 00:07:38]} Be5+ {[%clk 00:44:43]}
{[%emt 00:08:47]} 22. Bf4 {[%clk 00:53:09]} {[%emt 00:01:21]} Bxf4+ {[%clk
00:43:57]} {[%emt 00:01:15]} 23. Qxf4 {[%clk 00:52:54]} {[%emt 00:00:45]} Kg8
{[%clk 00:41:39]} {[%emt 00:02:47]} 24. Re5 {[%clk 00:51:31]} {[%emt 00:01:55]}
Rd2 {[%clk 00:39:28]} {[%emt 00:02:40]} 25. Nf2 {[%clk 00:51:20]} {[%emt
00:00:42]} 1-0

[Event "ONJK 2023 U25"]
[Site "Dieren, Netherlands"]
[Date "2023.08.07"]
[Round "3.1"]
[White "Baselmans, Luuk"]
[Black "Van Randtwijk, Mick"]
[Result "1-0"]
[TimeControl "90min + 30sec/zet"]
[WhiteElo "2338"]
[BlackElo "2035"]

1. e4 {[%clk 01:30:57]} {[%emt 00:00:02]} c5 {[%clk 01:30:52]} {[%emt
00:00:09]} 2. Nf3 {[%clk 01:31:20]} {[%emt 00:00:07]} d6 {[%clk 01:31:14]}
{[%emt 00:00:08]} 3. Bb5+ {[%clk 01:31:43]} {[%emt 00:00:07]} Nd7 {[%clk
01:31:25]} {[%emt 00:00:19]} 4. Ba4 {[%clk 01:31:03]} {[%emt 00:01:09]} Ngf6
{[%clk 01:30:24]} {[%emt 00:01:31]} 5. O-O {[%clk 01:31:22]} {[%emt 00:00:11]}
e6 {[%clk 01:30:08]} {[%emt 00:00:46]} 6. Re1 {[%clk 01:31:26]} {[%emt
00:00:26]} a6 {[%clk 01:30:17]} {[%emt 00:00:22]} 7. c4 {[%clk 01:31:22]}
{[%emt 00:00:33]} Be7 {[%clk 01:30:06]} {[%emt 00:00:42]} 8. Nc3 {[%clk
01:31:38]} {[%emt 00:00:13]} O-O {[%clk 01:29:56]} {[%emt 00:00:41]} 9. d4
{[%clk 01:30:38]} {[%emt 00:01:30]} cxd4 {[%clk 01:30:02]} {[%emt 00:00:24]} 10.
Nxd4 {[%clk 01:30:25]} {[%emt 00:00:41]} Qc7 {[%clk 01:29:57]} {[%emt
00:00:36]} 11. Qe2 {[%clk 01:30:39]} {[%emt 00:00:17]} h6 {[%clk 01:28:35]}
{[%emt 00:01:52]} 12. h3 {[%clk 01:26:37]} {[%emt 00:04:31]} Nb6 {[%clk
01:25:50]} {[%emt 00:03:15]} 13. Bb3 {[%clk 01:26:52]} {[%emt 00:00:15]} Bd7
{[%clk 01:25:27]} {[%emt 00:00:54]} 14. Nc2 {[%clk 01:25:04]} {[%emt 00:02:17]}
Rac8 {[%clk 01:20:02]} {[%emt 00:05:55]} 15. Ne3 {[%clk 01:25:22]} {[%emt
00:00:12]} Rfe8 {[%clk 01:20:25]} {[%emt 00:00:07]} 16. Bd2 {[%clk 01:22:44]}
{[%emt 00:03:09]} Bc6 {[%clk 01:12:06]} {[%emt 00:08:49]} 17. Bc2 {[%clk
01:19:56]} {[%emt 00:03:18]} Rcd8 {[%clk 01:03:51]} {[%emt 00:08:45]} 18. a4
{[%clk 01:14:30]} {[%emt 00:05:56]} d5 {[%clk 00:49:56]} {[%emt 00:14:26]} 19.
cxd5 {[%clk 01:12:15]} {[%emt 00:02:44]} exd5 {[%clk 00:50:21]} {[%emt
00:00:06]} 20. a5 {[%clk 01:10:37]} {[%emt 00:02:08]} Nc4 {[%clk 00:50:31]}
{[%emt 00:00:19]} 21. Nxc4 {[%clk 01:10:45]} {[%emt 00:00:22]} dxc4 {[%clk
00:50:55]} {[%emt 00:00:06]} 22. Be3 {[%clk 01:10:48]} {[%emt 00:00:27]} Qe5
{[%clk 00:47:18]} {[%emt 00:04:07]} 23. Qxc4 {[%clk 01:03:05]} {[%emt
00:08:13]} Rc8 {[%clk 00:47:19]} {[%emt 00:00:29]} 24. f4 {[%clk 00:58:26]}
{[%emt 00:05:09]} Qh5 {[%clk 00:45:34]} {[%emt 00:02:14]} 25. Qf1 {[%clk
00:55:33]} {[%emt 00:03:24]} Bc5 {[%clk 00:41:26]} {[%emt 00:04:38]} 26. e5
{[%clk 00:53:21]} {[%emt 00:02:42]} Bxe3+ {[%clk 00:34:47]} {[%emt 00:07:09]}
27. Rxe3 {[%clk 00:53:35]} {[%emt 00:00:16]} Nd5 {[%clk 00:35:13]} {[%emt
00:00:04]} 28. Nxd5 {[%clk 00:52:08]} {[%emt 00:01:57]} Bxd5 {[%clk 00:35:39]}
{[%emt 00:00:05]} 29. Qd3 {[%clk 00:51:18]} {[%emt 00:01:19]} Qh4 {[%clk
00:35:41]} {[%emt 00:00:29]} 30. Rf1 {[%clk 00:43:24]} {[%emt 00:08:24]} Red8
{[%clk 00:31:02]} {[%emt 00:05:09]} 31. Qh7+ {[%clk 00:42:37]} {[%emt
00:01:16]} Kf8 {[%clk 00:31:27]} {[%emt 00:00:05]} 32. Bf5 {[%clk 00:41:39]}
{[%emt 00:01:28]} Bc4 {[%clk 00:28:17]} {[%emt 00:03:40]} 33. g3 {[%clk
00:39:25]} {[%emt 00:02:43]} Qh5 {[%clk 00:26:04]} {[%emt 00:02:44]} 34. Rfe1
{[%clk 00:30:52]} {[%emt 00:09:03]} Be6 {[%clk 00:20:04]} {[%emt 00:06:30]} 35.
Bxe6 {[%clk 00:27:03]} {[%emt 00:04:19]} fxe6 {[%clk 00:20:30]} {[%emt
00:00:04]} 36. f5 {[%clk 00:26:52]} {[%emt 00:00:41]} Qg5 {[%clk 00:19:36]}
{[%emt 00:01:24]} 37. f6 {[%clk 00:25:24]} {[%emt 00:01:58]} gxf6 {[%clk
00:16:57]} {[%emt 00:03:10]} 38. exf6 {[%clk 00:25:16]} {[%emt 00:00:37]} Rd2
{[%clk 00:17:20]} {[%emt 00:00:07]} 39. Qe7+ {[%clk 00:25:26]} {[%emt
00:00:21]} 1-0

[Event "ONJK 2023 U25"]
[Site "Dieren, Netherlands"]
[Date "2023.08.07"]
[Round "3.2"]
[White "Faybish, Benjamin"]
[Black "Boudry, William"]
[Result "1/2-1/2"]
[TimeControl "90min + 30sec/zet"]
[WhiteElo "2064"]
[BlackElo "2084"]

1. d4 {[%clk 01:27:03]} {[%emt 00:03:56]} d5 {[%clk 01:30:48]} {[%emt
00:00:13]} 2. c4 {[%clk 01:26:52]} {[%emt 00:00:41]} e6 {[%clk 01:30:56]}
{[%emt 00:00:23]} 3. Nf3 {[%clk 01:27:12]} {[%emt 00:00:09]} c6 {[%clk
01:30:44]} {[%emt 00:00:42]} 4. e3 {[%clk 01:24:13]} {[%emt 00:03:29]} f5
{[%clk 01:30:32]} {[%emt 00:00:42]} 5. Nc3 {[%clk 01:24:14]} {[%emt 00:00:29]}
Nf6 {[%clk 01:30:57]} {[%emt 00:00:04]} 6. Bd3 {[%clk 01:24:24]} {[%emt
00:00:21]} Bd6 {[%clk 01:31:07]} {[%emt 00:00:20]} 7. O-O {[%clk 01:24:31]}
{[%emt 00:00:22]} Ne4 {[%clk 01:31:12]} {[%emt 00:00:25]} 8. Ne2 {[%clk
01:21:15]} {[%emt 00:03:46]} g5 {[%clk 01:30:13]} {[%emt 00:01:29]} 9. Ne5
{[%clk 01:11:10]} {[%emt 00:10:36]} Nc5 {[%clk 01:22:59]} {[%emt 00:07:45]} 10.
b3 {[%clk 01:05:50]} {[%emt 00:05:49]} Nxd3 {[%clk 01:17:23]} {[%emt 00:06:05]}
11. Qxd3 {[%clk 01:05:16]} {[%emt 00:01:04]} Nd7 {[%clk 01:16:45]} {[%emt
00:01:08]} 12. Bb2 {[%clk 00:57:54]} {[%emt 00:07:53]} Qf6 {[%clk 01:09:42]}
{[%emt 00:07:32]} 13. f4 {[%clk 00:53:45]} {[%emt 00:04:39]} Rg8 {[%clk
01:08:34]} {[%emt 00:01:38]} 14. Nxd7 {[%clk 00:45:53]} {[%emt 00:08:23]} Bxd7
{[%clk 01:07:56]} {[%emt 00:01:08]} 15. a4 {[%clk 00:45:47]} {[%emt 00:00:36]}
O-O-O {[%clk 01:05:10]} {[%emt 00:03:15]} 16. Ba3 {[%clk 00:44:21]} {[%emt
00:01:56]} Bc7 {[%clk 01:03:21]} {[%emt 00:02:18]} 17. b4 {[%clk 00:36:36]}
{[%emt 00:08:16]} Rg6 {[%clk 00:57:43]} {[%emt 00:06:09]} 18. Ra2 {[%clk
00:36:39]} {[%emt 00:00:26]} Rdg8 {[%clk 00:57:14]} {[%emt 00:00:59]} 19. b5
{[%clk 00:35:20]} {[%emt 00:01:50]} gxf4 {[%clk 00:55:55]} {[%emt 00:01:48]} 20.
Nxf4 {[%clk 00:35:44]} {[%emt 00:00:06]} Qh4 {[%clk 00:55:38]} {[%emt
00:00:47]} 21. cxd5 {[%clk 00:31:44]} {[%emt 00:04:31]} Bxf4 {[%clk 00:43:19]}
{[%emt 00:12:49]} 22. Rxf4 {[%clk 00:30:04]} {[%emt 00:02:09]} Qh3 {[%clk
00:43:28]} {[%emt 00:00:19]} 23. Rff2 {[%clk 00:28:58]} {[%emt 00:01:39]} exd5
{[%clk 00:42:31]} {[%emt 00:01:26]} 24. bxc6 {[%clk 00:28:30]} {[%emt
00:00:59]} Rxc6 {[%clk 00:40:49]} {[%emt 00:02:12]} 25. Rac2 {[%clk 00:27:30]}
{[%emt 00:01:30]} Kb8 {[%clk 00:39:08]} {[%emt 00:02:11]} 26. Rxc6 {[%clk
00:27:39]} {[%emt 00:00:21]} Bxc6 {[%clk 00:39:30]} {[%emt 00:00:06]} 27. Bd6+
{[%clk 00:25:50]} {[%emt 00:02:20]} Ka8 {[%clk 00:38:28]} {[%emt 00:01:32]} 28.
a5 {[%clk 00:25:15]} {[%emt 00:01:06]} Qh6 {[%clk 00:36:47]} {[%emt 00:02:07]}
29. Bf4 {[%clk 00:21:38]} {[%emt 00:04:10]} Qe6 {[%clk 00:36:43]} {[%emt
00:00:33]} 30. Be5 {[%clk 00:21:08]} {[%emt 00:01:01]} Bd7 {[%clk 00:36:43]}
{[%emt 00:00:29]} 31. Rc2 {[%clk 00:17:32]} {[%emt 00:04:07]} Rc8 {[%clk
00:36:53]} {[%emt 00:00:20]} 32. Rxc8+ {[%clk 00:14:22]} {[%emt 00:03:40]} Bxc8
{[%clk 00:37:18]} {[%emt 00:00:05]} 33. Qc3 {[%clk 00:14:21]} {[%emt 00:00:31]}
Qc6 {[%clk 00:37:43]} {[%emt 00:00:04]} 34. Qxc6 {[%clk 00:14:37]} {[%emt
00:00:15]} bxc6 {[%clk 00:38:10]} {[%emt 00:00:04]} 35. Kf2 {[%clk 00:14:54]}
{[%emt 00:00:13]} Kb7 {[%clk 00:38:25]} {[%emt 00:00:14]} 36. Kf3 {[%clk
00:14:52]} {[%emt 00:00:32]} Ka6 {[%clk 00:38:53]} {[%emt 00:00:02]} 37. Bc7
{[%clk 00:15:15]} {[%emt 00:00:07]} Kb5 {[%clk 00:39:16]} {[%emt 00:00:08]} 38.
Kf4 {[%clk 00:15:24]} {[%emt 00:00:20]} c5 {[%clk 00:37:59]} {[%emt 00:01:46]}
39. dxc5 {[%clk 00:14:58]} {[%emt 00:00:57]} Kxc5 {[%clk 00:38:25]} {[%emt
00:00:04]} 40. Kg5 {[%clk 00:06:26]} {[%emt 00:09:02]} d4 {[%clk 00:38:36]}
{[%emt 00:00:19]} 41. exd4+ {[%clk 00:06:43]} {[%emt 00:00:13]} Kxd4 {[%clk
00:39:00]} {[%emt 00:00:06]} 42. Kh6 {[%clk 00:06:54]} {[%emt 00:00:19]} Ke3
{[%clk 00:39:24]} {[%emt 00:00:05]} 43. Kxh7 {[%clk 00:07:05]} {[%emt
00:00:19]} f4 {[%clk 00:39:49]} {[%emt 00:00:05]} 44. h4 {[%clk 00:02:44]}
{[%emt 00:04:52]} Bb7 {[%clk 00:40:11]} {[%emt 00:00:08]} 45. h5 {[%clk
00:02:23]} {[%emt 00:00:51]} Bxg2 {[%clk 00:40:01]} {[%emt 00:00:39]} 46. h6
{[%clk 00:01:58]} {[%emt 00:00:56]} Be4+ {[%clk 00:39:58]} {[%emt 00:00:33]} 47.
Kg7 {[%clk 00:02:22]} {[%emt 00:00:05]} f3 {[%clk 00:39:27]} {[%emt 00:01:02]}
48. Bb8 {[%clk 00:02:23]} {[%emt 00:00:29]} a6 {[%clk 00:39:50]} {[%emt
00:00:07]} 49. h7 {[%clk 00:02:39]} {[%emt 00:00:13]} Bxh7 {[%clk 00:40:14]}
{[%emt 00:00:06]} 50. Kxh7 {[%clk 00:02:47]} {[%emt 00:00:23]} Ke4 {[%clk
00:40:38]} {[%emt 00:00:07]} 51. Ba7 {[%clk 00:03:01]} {[%emt 00:00:14]} Kd5
{[%clk 00:41:03]} {[%emt 00:00:05]} 52. Kg6 {[%clk 00:03:10]} {[%emt 00:00:22]}
Kc6 {[%clk 00:41:28]} {[%emt 00:00:05]} 53. Kf5 {[%clk 00:03:33]} {[%emt
00:00:07]} Kb5 {[%clk 00:41:53]} {[%emt 00:00:05]} 54. Kf4 {[%clk 00:03:55]}
{[%emt 00:00:07]} Kxa5 {[%clk 00:42:10]} {[%emt 00:00:14]} 55. Ke4 {[%emt
00:01:11]} 1/2-1/2

[Event "ONJK 2023 U25"]
[Site "Dieren, Netherlands"]
[Date "2023.08.07"]
[Round "3.3"]
[White "Guillaumond, Matthieu"]
[Black "Verheul, Job"]
[Result "1-0"]
[TimeControl "90min + 30sec/zet"]
[WhiteElo "1856"]
[BlackElo "1952"]

1. e4 {[%clk 01:30:58]} {[%emt 00:00:02]} c6 {[%clk 01:30:50]} {[%emt
00:00:10]} 2. d4 {[%clk 01:31:22]} {[%emt 00:00:06]} d5 {[%clk 01:31:12]}
{[%emt 00:00:08]} 3. Nc3 {[%clk 01:31:47]} {[%emt 00:00:06]} dxe4 {[%clk
01:31:34]} {[%emt 00:00:08]} 4. Nxe4 {[%clk 01:32:11]} {[%emt 00:00:06]} Nf6
{[%clk 01:31:45]} {[%emt 00:00:19]} 5. Nxf6+ {[%clk 01:32:32]} {[%emt
00:00:09]} exf6 {[%clk 01:32:06]} {[%emt 00:00:09]} 6. c3 {[%clk 01:32:49]}
{[%emt 00:00:13]} Bd6 {[%clk 01:32:16]} {[%emt 00:00:19]} 7. Bd3 {[%clk
01:33:12]} {[%emt 00:00:07]} O-O {[%clk 01:32:31]} {[%emt 00:00:15]} 8. Ne2
{[%clk 01:33:38]} {[%emt 00:00:04]} Re8 {[%clk 01:32:23]} {[%emt 00:00:38]} 9.
Qc2 {[%clk 01:34:01]} {[%emt 00:00:08]} h5 {[%clk 01:32:39]} {[%emt 00:00:13]}
10. Be3 {[%clk 01:34:25]} {[%emt 00:00:07]} Nd7 {[%clk 01:32:38]} {[%emt
00:00:31]} 11. O-O-O {[%clk 01:34:43]} {[%emt 00:00:12]} Nf8 {[%clk 01:32:51]}
{[%emt 00:00:17]} 12. h3 {[%clk 01:32:57]} {[%emt 00:02:15]} Be6 {[%clk
01:29:48]} {[%emt 00:03:33]} 13. Kb1 {[%clk 01:31:32]} {[%emt 00:01:55]} b5
{[%clk 01:25:58]} {[%emt 00:04:21]} 14. g4 {[%clk 01:19:47]} {[%emt 00:12:14]}
Bd5 {[%clk 01:18:05]} {[%emt 00:08:24]} 15. Rhg1 {[%clk 01:19:46]} {[%emt
00:00:30]} Bh2 {[%clk 01:13:53]} {[%emt 00:04:42]} 16. gxh5 {[%clk 01:19:00]}
{[%emt 00:01:16]} Bxg1 {[%clk 01:10:34]} {[%emt 00:03:49]} 17. Rxg1 {[%clk
01:19:21]} {[%emt 00:00:10]} Kh8 {[%clk 00:57:02]} {[%emt 00:14:01]} 18. Bh6
{[%clk 01:00:17]} {[%emt 00:19:34]} g5 {[%clk 00:30:09]} {[%emt 00:27:24]} 19.
hxg6 {[%clk 00:53:42]} {[%emt 00:07:06]} fxg6 {[%clk 00:29:24]} {[%emt
00:01:14]} 20. Bxf8 {[%clk 00:42:34]} {[%emt 00:11:37]} Rxf8 {[%clk 00:29:22]}
{[%emt 00:00:33]} 21. Nf4 {[%clk 00:42:24]} {[%emt 00:00:40]} Bf7 {[%clk
00:20:41]} {[%emt 00:09:10]} 22. Nxg6+ {[%clk 00:41:55]} {[%emt 00:01:00]} Bxg6
{[%clk 00:20:58]} {[%emt 00:00:13]} 23. Bxg6 {[%clk 00:41:20]} {[%emt
00:01:05]} f5 {[%clk 00:13:15]} {[%emt 00:08:13]} 24. Bxf5 {[%clk 00:25:08]}
{[%emt 00:16:41]} Qf6 {[%clk 00:12:24]} {[%emt 00:01:21]} 25. Be4 {[%clk
00:21:41]} {[%emt 00:03:58]} Rae8 {[%clk 00:08:44]} {[%emt 00:04:09]} 26. f3
{[%clk 00:20:10]} {[%emt 00:02:01]} Rg8 {[%clk 00:05:03]} {[%emt 00:04:12]} 27.
Rg4 {[%clk 00:17:47]} {[%emt 00:02:53]} a5 {[%clk 00:04:31]} {[%emt 00:01:02]}
28. Qf2 {[%clk 00:15:01]} {[%emt 00:02:50]} Rxg4 {[%clk 00:02:43]} {[%emt
00:02:45]} 29. hxg4 {[%clk 00:15:22]} {[%emt 00:00:08]} Kg7 {[%clk 00:00:52]}
{[%emt 00:02:20]} 30. Qh2 {[%clk 00:12:41]} {[%emt 00:03:11]} Re7 {[%clk
00:00:48]} {[%emt 00:00:35]} 31. Qh7+ {[%clk 00:08:14]} {[%emt 00:04:35]} Kf8
{[%clk 00:01:16]} {[%emt 00:00:24]} 32. Qf5 {[%clk 00:08:11]} {[%emt 00:00:32]}
Qxf5 {[%clk 00:00:49]} {[%emt 00:00:57]} 33. Bxf5 {[%clk 00:08:17]} {[%emt
00:00:24]} b4 {[%clk 00:00:52]} {[%emt 00:00:29]} 34. cxb4 {[%clk 00:08:15]}
{[%emt 00:00:31]} axb4 {[%clk 00:01:20]} {[%emt 00:00:02]} 35. Kc2 {[%clk
00:07:43]} {[%emt 00:00:54]} c5 {[%clk 00:00:36]} {[%emt 00:01:23]} 36. dxc5
{[%clk 00:07:53]} {[%emt 00:00:19]} Rc7 {[%clk 00:01:04]} {[%emt 00:00:02]} 37.
Kb3 {[%clk 00:08:07]} {[%emt 00:00:15]} Rxc5 {[%clk 00:01:21]} {[%emt
00:00:14]} 38. Kxb4 {[%clk 00:08:11]} {[%emt 00:00:25]} 1-0